Cogmind - Beta 16 --- EXPLORER MODE // 2025.11.20 @ 13:26:45 Player: K.K.Y. Result: Destroyed by N4-X3T(R) with Subdweller Machine Gun Performance ------------- Evolutions (0) 0 Regions Visited (3) 600 Robots Destroyed (20) 100 Value Destroyed (534) 534 Prototype IDs (0) 0 Alien Tech Used (0) 0 Bonus (0) 0 TOTAL SCORE: 1234 Bonus ------- None Cogmind --------- Core Integrity 0/250 Matter 292/300 Energy 100/100 System Corruption 5% Temperature Cool (0) Movement Treading (160) Location -10/Subcaves Parts ------- > --- POWER (1) -------- (None) > --- PROPULSION (2) --- Light Treads Spiked Treads > --- UTILITY (3) ------ Medium Storage Unit Structural Scanner Core Shielding > --- WEAPON (2) ------- Medium Laser Makeshift Hammer > --- INVENTORY (10) --- High-capacity Storage Unit High-capacity Matter Pod (200) Experimental Sensor Array Transport Network Coupler Light Armor Plating Light Armor Plating Light Armor Plating Makeshift Light Armor Plating Heavy Battle Rifle Battle Cannon Peak State ------------ > --- POWER ------------ (None) > --- PROPULSION ------- Light Treads Spiked Treads > --- UTILITY ---------- Medium Storage Unit Structural Scanner Core Shielding > --- WEAPON ----------- Medium Laser Makeshift Hammer > --- INVENTORY -------- High-capacity Storage Unit High-capacity Matter Pod Experimental Sensor Array Transport Network Coupler Light Armor Plating Light Armor Plating Light Armor Plating Makeshift Light Armor Plating Assault Rifle [Rating: 13] Favorites ----------- Power Ion Engine Engine Ion Engine Propulsion Light Treads Treads Light Treads Utility Medium Storage Unit Device Structural Scanner Storage Medium Storage Unit Protection Core Shielding Weapon Assault Rifle Energy Gun Medium Laser Ballistic Gun Assault Rifle Impact Weapon Hammer Build | -11 -10 -10 -10 ------- Run | Yrd Mat Min Sub Slots Evolved 1 | . 1 . . Power . | . . . . Propulsion . | . . . . Utility 1 | . 1 . . Weapon . | . . . . Parts Attached 14 | 7 3 . 4 Power 2 | 1 1 . . Engine 2 | 1 1 . . Core . | . . . . Reactor . | . . . . Propulsion 3 | 2 . . 1 Treads 3 | 2 . . 1 Leg . | . . . . Wheel . | . . . . Hover . | . . . . Flight . | . . . . Utility 4 | 3 . . 1 Device 2 | 2 . . . Storage 1 | 1 . . . Processor . | . . . . Hackware . | . . . . Protection 1 | . . . 1 Artifact . | . . . . Weapon 5 | 1 2 . 2 Energy Gun 1 | . . . 1 Energy Cannon . | . . . . Ballistic Gun 2 | 1 1 . . Ballistic Cannon . | . . . . Launcher . | . . . . Special Weapon . | . . . . Impact Weapon 2 | . 1 . 1 Slashing Weapon . | . . . . Piercing Weapon . | . . . . Special Melee Weapon . | . . . . Unidentified Prototypes . | . . . . Parts Lost 4 | . . 3 1 Power 1 | . . 1 . Propulsion 1 | . . 1 . Utility 1 | . . 1 . Weapon 1 | . . . 1 Highest Loss Streak 3 | . . 3 1 To Critical Strikes . | . . . . Average Backups 6 | 2 3 7 9 Power . | . . . . Propulsion . | . . . . Utility 4 | 1 3 5 7 Weapon 1 | . . 2 1 Tool/Special . | . . . . Unused Backups 9 | . . . 9 Power . | . . . . Propulsion . | . . . . Utility 7 | . . . 7 Weapon 2 | . . . 2 Tool/Special . | . . . . Average Slot Usage (%) 93 | . 99 96 75 Engine 9 | . 12 10 . Treads 22 | . 25 23 16 Device 21 | . 25 23 12 Storage 12 | . 12 12 12 Protection 2 | . . . 9 Energy Gun 2 | . . . 9 Ballistic Gun 12 | . 18 12 1 Impact Weapon 8 | . 4 12 12 Peak Build Rating 13 | 6 8 9 13 Average Rating 8 | 3 7 7 10 On Entrance 5 | . 6 8 6 Avg Prop Armor Cover (%) . | . . . . Naked Turns . | . . . . Heaviest Build 21 | 18 21 21 17 Greatest Support 40 | 40 40 40 40 Greatest Overweight (x) 3 | 3 . . . Average Overweight (x) . | . . . . Largest Inventory Capacity 10 | 10 10 10 10 Average Capacity 9 | 8 10 10 10 Most Carried 10 | 6 8 10 10 Average Carried 6 | 2 3 7 9 Final Capacity 10 | 10 10 10 10 Final Carried 10 | 2 7 10 10 Class Distribution -------------------- 100% | Hacker-Mutant Dominant Class ---------------- Hacker-Mutant | -10/Materials Hacker-Mutant | -10/Mines Hacker-Mutant | -10/Subcaves Resources | -11 -10 -10 -10 ----------- Run | Yrd Mat Min Sub Matter Collected 508 | 227 195 29 57 Remotely . | . . . . Salvage Created 672 | . 256 202 214 Parts 24 | . 14 6 4 Haulers Intercepted 2 | . 2 . . Recyclers Shooed . | . . . . Parts Field Recycled . | . . . . Retrieved Matter . | . . . . Parts Self-Destructed . | . . . . Prevented . | . . . . Parts Restored . | . . . . Kills | -11 -10 -10 -10 ------- Run | Yrd Mat Min Sub Combat Hostiles Destroyed 15 | . 4 5 6 Melee 5 | . . 4 1 Guns 4 | . 4 . . Classes Destroyed 8 | . 5 2 1 Hauler 2 | . 2 . . Recycler 1 | . . 1 . Mechanic 1 | . 1 . . Watcher 1 | . 1 . . Swarmer 4 | . 2 2 . Grunt 4 | . 2 2 . Demolisher 1 | . . 1 . Subdweller 6 | . . . 6 Best Kill Streak 4 | . 4 2 2 Combat Bots Only 2 | . 2 2 2 Max Kills in Single Turn 1 | . 1 1 1 Gunslinging . | . . . . Exploded . | . . . . Melee 1 | . . 1 1 Uniques/NPCs Destroyed . | . . . . Combat | -11 -10 -10 -10 -------- Run | Yrd Mat Min Sub Hostile Shots Fired 77 | . 25 26 26 Missed 23 | . 8 7 8 Hits 54 | . 17 19 18 Projectile 54 | . 17 19 18 AOE 9 | . . 8 1 Critical Strikes 1 | . . . 1 Damage Taken 983 | . 134 578 271 Core 252 | . 21 138 93 Absorbed by Shields . | . . . . Redirected to Shielding 16 | . . . 16 Ignored by Resistances 416 | . 85 166 165 Core Remaining (%) 100 | 100 . . . Volleys Fired 27 | . 24 . 3 Largest 2 | . 2 . 1 Hottest 50 | . 40 . 50 Shots Fired 52 | . 47 . 5 Gun 52 | . 47 . 5 Cannon . | . . . . Launcher . | . . . . Special . | . . . . Kinetic 47 | . 47 . . Thermal 5 | . . . 5 Explosive . | . . . . Electromagnetic . | . . . . Robot Hit Streak 20 | . 17 . 20 Robot Miss Streak 2 | . 2 . . Penetration Max . | . . . . Secondary Targets 1 | . 1 . . Max Gunslinging Chain 1 | . 1 . . Shots Hit Robots 70 | . 37 11 22 Core Hits 20 | . 14 4 2 Critical Kills 1 | . . 1 . Critical Parts Destroyed 3 | . . . 3 Critical Strikes 5 | . . 1 4 Smash 5 | . . 1 4 Melee Attacks 36 | . 5 12 19 Impact 36 | . 5 12 19 Slashing . | . . . . Piercing . | . . . . Sneak Attacks 1 | . . 1 . Combat Hostiles . | . . . . Follow-up Attacks . | . . . . Damage Inflicted 1619 | . 472 245 902 Guns 494 | . 456 . 38 Cannons . | . . . . Explosions . | . . . . Melee 1125 | . 16 245 864 Ramming . | . . . . Kinetic 456 | . 456 . . Thermal 38 | . . . 38 Explosive . | . . . . Electromagnetic . | . . . . Impact 1125 | . 16 245 864 Slashing . | . . . . Piercing . | . . . . Highest Corruption 5 | . . 5 5 Average Corruption 5 | . . 5 5 Corruption Purged . | . . . . Corruption Blocked . | . . . . Effects 14 | . . 2 12 Message Errors 3 | . . . 3 Matter Fused 3 | . . . 3 Heat Flow Errors 2 | . . 1 1 Energy Discharges 3 | . . 1 2 Data Loss (major) 1 | . . . 1 Misfires 2 | . . . 2 Overload Shots . | . . . . Overflow Damage 237 | . . 11 226 Projectiles . | . . . . Explosions . | . . . . Melee 237 | . . 11 226 Knockbacks 6 | . . . 6 Impact 6 | . . . 6 Kinetic . | . . . . Secondary . | . . . . Self-Inflicted Damage . | . . . . Shots . | . . . . Rammed . | . . . . Targets Rammed . | . . . . Kicked . | . . . . Crushed . | . . . . Highest Temperature 209 | . 4 79 209 Average Temperature 36 | . 2 43 120 Received Heat Transfer 198 | . 114 36 48 Siege Activations . | . . . . Martial Activations . | . . . . Shielding Activations . | . . . . Robots Disrupted . | . . . . Combat Hostiles . | . . . . Robots Corrupted 7 | . . 2 5 Combat Hostiles 6 | . . 1 5 Parts Fried 6 | . . 1 5 Impact Corruptions 9 | . . 3 6 Robots Melted . | . . . . Combat Hostiles . | . . . . Parts Melted . | . . . . Heat Transferred 111 | . . . 111 Parts Sabotaged . | . . . . Parts Stolen . | . . . . Parts Stripped . | . . . . Power Chain Reactions . | . . . . Alert | -11 -10 -10 -10 ------- Run | Yrd Mat Min Sub Maximum Alert Level . | . . . . Low Security (%) 100 | 100 100 100 . Level 1 . | . . . . Level 2 . | . . . . Level 3 . | . . . . Level 4 . | . . . . Level 5 . | . . . . High Security . | . . . . Max Security . | . . . . Peak Influence 50 | . 50 50 . Initial . | . . . . Average 3 | . 3 4 . Influence Increases 267 | . 132 135 . Destroy 0b10 Robot/C 180 | . 80 100 . Destroy 0b10 Robot/NC 25 | . 20 5 . Destroy Leader 56 | . 26 30 . Successful Hack 3 | . 3 . . Destroy Structure 3 | . 3 . . Influence Decreases 267 | . 132 135 . Time Decay 267 | . 132 135 . Squads Dispatched . | . . . . Investigation . | . . . . Extermination . | . . . . Reinforcement . | . . . . Assault . | . . . . Garrison . | . . . . Intercept . | . . . . Searches Triggered . | . . . . Construction Impeded . | . . . . Haulers Reinforced . | . . . . Active Scanning Responses . | . . . . Cargo Convoy Interrupts . | . . . . Stealth | -11 -10 -10 -10 --------- Run | Yrd Mat Min Sub Distress Signals 1 | . 1 . . Communications Jammed . | . . . . Distress Signals . | . . . . Times Spotted 21 | . 7 6 8 Peak Tracking Total 2 | . 2 2 2 Tactical Retreats . | . . . . Traps | -11 -10 -10 -10 ------- Run | Yrd Mat Min Sub Traps Triggered . | . . . . Indirectly . | . . . . Trap Hack Attempts . | . . . . Triggered . | . . . . Disarmed . | . . . . Reprogrammed . | . . . . Reused . | . . . . Traps Extracted . | . . . . Installed . | . . . . Triggered . | . . . . Machines | -11 -10 -10 -10 ---------- Run | Yrd Mat Min Sub Machines Disabled . | . . . . Max in Single Turn . | . . . . Machines Repaired . | . . . . Machines Dismantled . | . . . . Machines Sabotaged . | . . . . Overloaded Fab Kills . | . . . . Hacking | -11 -10 -10 -10 --------- Run | Yrd Mat Min Sub Machines Accessed 1 | . 1 . . Terminals 1 | . 1 . . Fabricators . | . . . . Repair Stations . | . . . . Recycling Units . | . . . . Scanalyzers . | . . . . Garrison Access . | . . . . Total Hacks 2 | . 2 . . Successful 2 | . 2 . . Failed . | . . . . Catastrophic . | . . . . Database Lockouts . | . . . . Manual . | . . . . Terminals 2 | . 2 . . Fabricators . | . . . . Repair Stations . | . . . . Recycling Units . | . . . . Scanalyzers . | . . . . Garrison Access . | . . . . Terminal Hacks 2 | . 2 . . Hauler Manifests 1 | . 1 . . Registered Components 1 | . 1 . . Fabricator Hacks . | . . . . Repair Station Hacks . | . . . . Recycling Unit Hacks . | . . . . Scanalyzer . | . . . . Garrison Access Hacks . | . . . . Unauthorized Hacks . | . . . . Terminals . | . . . . Fabricators . | . . . . Repair Stations . | . . . . Recycling Units . | . . . . Scanalyzers . | . . . . Garrison Access . | . . . . Data Cores Recovered . | . . . . Used . | . . . . Hacking Detections 1 | . 1 . . Full Trace Events . | . . . . Feedback Events . | . . . . Feedback Blocked . | . . . . Robot Schematics Acquired . | . . . . Robots Built . | . . . . Authchips . | . . . . Time . | . . . . Total Robot Build Rating . | . . . . Part Schematics Acquired . | . . . . Parts Built . | . . . . Authchips . | . . . . Time . | . . . . Total Part Build Rating . | . . . . Part Studies Acquired . | . . . . Parts Repaired . | . . . . Time . | . . . . Parts Recycled . | . . . . Recycled Matter . | . . . . Retrieved Matter . | . . . . Retrieved Components . | . . . . Parts Scanalyzed . | . . . . Part Schematics Acquired . | . . . . Parts Damaged . | . . . . Bothacking | -11 -10 -10 -10 ------------ Run | Yrd Mat Min Sub Used RIF Installer . | . . . . Robots Hacked . | . . . . Non-combat . | . . . . Combat . | . . . . Robot Hacks Applied . | . . . . Relay Couplers Released . | . . . . Fabnet Peak Effective % . | . . . . Robots Rewired . | . . . . Allies Hacked . | . . . . Hacks Repelled . | . . . . Allies | -11 -10 -10 -10 -------- Run | Yrd Mat Min Sub Total Allies . | . . . . Largest Group . | . . . . Highest-Rated Group . | . . . . Highest-Rated Ally . | . . . . Total Orders . | . . . . Ally Attacks . | . . . . Total Damage . | . . . . Kills . | . . . . Allies Corrupted . | . . . . Allies Melted . | . . . . Intel | -11 -10 -10 -10 ------- Run | Yrd Mat Min Sub Active Infowar (turns) 2465 | 61 1081 815 508 Terrain 1832 | 17 1081 734 . Structural 2448 | 44 1081 815 508 Robot Analysis Total . | . . . . Derelict Logs Recovered 2 | . . 1 1 Drone Launches . | . . . . Drone Recoveries . | . . . . Exploration | -11 -10 -10 -10 ------------- Run | Yrd Mat Min Sub Turns Passed 2483 | 79 1081 815 508 Spaces Moved 1345 | 59 596 435 255 Core 32 | 32 . . . Treads 1313 | 27 596 435 255 Legs . | . . . . Wheels . | . . . . Hover . | . . . . Flight . | . . . . Fastest Speed 50 | 50 160 160 160 Average Speed 157 | 110 160 160 160 Slowest Speed 200 | 200 160 160 160 Overloaded Moves . | . . . . Propulsion Burnouts . | . . . . Robots Hopped . | . . . . Potential Cave-ins . | . . . . Cave-ins Triggered 1 | . . 1 . Exploration Rate (%) 48 | 4 98 75 15 Regions Visited 3 Branch Regions 2 Pre-discovered Areas 1 | . . . 1 Known Exits Taken 3 | 1 1 1 . Unknown Exits Taken . | . . . . Scrap Searched 9 | . . 1 8 Spaces Dug 3 | . 3 . . Terrain Destroyed 3 | . 3 . . Melee 3 | . 3 . . Projectile . | . . . . AOE . | . . . . Terrain Rammed . | . . . . Walls Destroyed . | . . . . Machines Disabled . | . . . . Actions | -11 -10 -10 -10 --------- Run | Yrd Mat Min Sub Total 1606 | 71 667 533 335 Wait 162 | . 30 84 48 Move 1342 | 58 595 434 255 Hop . | . . . . Pick Up 21 | 6 8 3 4 Fast Attach 3 | 2 . . 1 Attach 9 | 4 2 . 3 Detach . | . . . . Swap 3 | 1 2 . . Drop 3 | . 1 . 2 Fire 27 | . 24 . 3 Melee 36 | . 5 12 19 Ram . | . . . . Kick . | . . . . Crush . | . . . . Escape Stasis . | . . . . Rewire . | . . . . Trap . | . . . . Miscellaneous . | . . . . Route ------- -11/Scrapyard -10/Materials (discovered 4 exits: *Mat x3 / *Min) -10/Mines (discovered 2 exits: *Mat / *Sub) -10/Subcaves (discovered 1 exit: *Mat) History --------- Turn | Location | Event 8 | -11/Scrapyard | Identified exit to Materials 8 | -11/Scrapyard | Discovered exit to Materials (range 15) 80 | -11/Scrapyard | Entered Materials 80 | -10/Materials | Evolved 1 slot: Utility x1 301 | -10/Materials | Build established: Hacker-Mutant 589 | -10/Materials | Identified exit to Materials 589 | -10/Materials | Discovered exit to Materials (range 15) 910 | -10/Materials | Discovered exit to Materials (range 3) 1065 | -10/Materials | Discovered exit to Materials (range 16) 1116 | -10/Materials | Identified exit to Mines 1116 | -10/Materials | Discovered exit to Mines (range 16) 1161 | -10/Materials | Entered Mines 1174 | -10/Mines | Assembled infested the area 1183 | -10/Mines | Met a Derelict bent on vengeance 1496 | -10/Mines | Discovered exit to Materials (range 5) 1817 | -10/Mines | Found a damaged Exp. Sensor Array with a note attached 1820 | -10/Mines | Found Prototype Device 1895 | -10/Mines | Crushed by falling debris 1897 | -10/Mines | Core integrity fell below 50% 1926 | -10/Mines | Lost 3 parts (1p1n1u) 1962 | -10/Mines | Identified exit to Subcaves 1962 | -10/Mines | Discovered exit to Subcaves (range 9) 1976 | -10/Mines | Entered Subcaves 1977 | -10/Subcaves | A swath of the cavern ceiling suddenly collapsed 1977 | -10/Subcaves | Approached by a straggling Scientist 1986 | -10/Subcaves | Shifting Twisted Machinery released Mak. Hammer 1986 | -10/Subcaves | Shifting Twisted Machinery released Sub. Power Source 1997 | -10/Subcaves | Ambushed by Subdwellers from Twisted Machinery 2040 | -10/Subcaves | Identified exit to Materials 2040 | -10/Subcaves | Discovered exit to Materials (range 5) 2105 | -10/Subcaves | Disturbed a concealed Subdweller 2174 | -10/Subcaves | Core integrity fell below 20% 2289 | -10/Subcaves | Learned location of Mines (-10) 2357 | -10/Subcaves | Disturbed a concealed Subdweller 2484 | -10/Subcaves | Destroyed by N4-X3T(R) with Subdweller Machine Gun Last Messages --------------- 02396_ Found 35 Matter. 02398_ Searching scrap... 02398_ Found Sub. Shrapnel Launcher. 02398_ Found Piercing Trap. 02398_ Found 45 Matter. 02403_ Searching scrap... 02403_ Found Sub. Beam Cannon. 02403_ Found Hvy. Battle Rifle. 02403_ Found 69 Matter. 02404_ BN-GMI(z): "She is not going to be happy we haven't found any suitable candidates yet." 02406_ Dropped Assault Rifle. 02406_ Acquired Hvy. Battle Rifle. 02410_ L8>&DMYAEKRQ0DZ/3HGPDK/DCLJL 02429_ System corrupted: Matter fused (-8). 02454_ System corrupted: FCS attempts to trigger Med. Laser. 02454_ System corrupted: Med. Laser misfires. 02475_ System corrupted: Substantial component data lost. Map ----- +----------------------------------------------------+ | ?????????????????????????????????????????????????? | | ?????????????????????????????????????????????????? | | ?????????????????????????????????????????????????? | | #######??????????????????????????????????????????? | | #######??????????????????????????????????????????? | | ] #%[##??????????????????????????????????????????? | | %]&&%##??????????????????????????????????????????? | | ##["###??????????????????????????????????????????? | | #%[####??????????????????????????????????????????? | | ## # ###???????????????? ?????????????????????? | | " " ###???????????????? ?????????????????????? | | ##???????????????? ?????????????????????? | | & % ##???????????????? ?????????????????????? | | # #####???????????????? ?????????????????????? | | ########???????????????? ?????????????????????? | | #######???????????????? #????????????????????? | | ######## ??????????????? #####?????????????????? | | ### ###??????????????? #####?????????????????? | | ###?????????????? ##?????????????????? | | ####### ???????? ???????????????????? | | * #########?????### ????????????????????? | | #### ????### ????????????????????? | | ### ???## ##????????????????????? | | # ###???## ##????????????????????? | | # ## ??## ####???????????????????? | | ###??## @####???????????????????? | | ##??## ###??????????????????? | | #### ###### ###??????????????????? | | ### ####### ###### ###?????????????????? | | ### ####### ## ###?????????????????? | | ### ##?### ##?????????????????? | | ### ######?## ## #######?????????????????? | | ?#########?### #### ########?????????????????? | | ?#####?????################??????????????????????? | | ????????????##############???????????????????????? | | ?????????????????????????????????????????????????? | | ?????????????????????????????????????????????????? | | ?????????????????????????????????????????????????? | | ?????????????????????????????????????????????????? | | ?????????????????????????????????????????????????? | | ?????????????????????????????????????????????????? | | ?????????????????????????????????????????????????? | | ?????????????????????????????????????????????????? | | ?????????????????????????????????????????????????? | | ?????????????????????????????????????????????????? | | ?????????????????????????????????????????????????? | | ?????????????????????????????????????????????????? | | ?????????????????????????????????????????????????? | | | | | +----------------------------------------------------+ Best States ------------- Heat Dissipation 25 Energy Generation 10 Energy Capacity 250 Matter Stores 300 Matter Capacity 300 Sight Range 16 Terrain Scan Range 14 Terrain Scan Density 10 Resistance: KI 35 Resistance: TH 35 Resistance: EX 35 Resistance: EM 35 Resistance: I 35 Resistance: S 35 Resistance: P 35 Core Shielding 20 Evasion (%) 50 Recoil Reduction 2 Offensive Hacking 20 Item Schematics ----------------- None Robot Schematics ------------------ None Fabricated ------------ Nothing Repaired ---------- Nothing Studied --------- None Alien Tech Used ----------------- None Achievements -------------- None Challenges ------------ None Game ------ Seed ShockGravmagCharge Manual? 0 Play Time 00:13:28 Cumulative 123.6 hours Start 2025.11.20 @ 13:16:12 End 2025.11.20 @ 13:26:45 Sessions 1 Manual Loads 0 Difficulty Explorer Special Mode None Game No. 141 Rogue 0 Adventurer 0 Explorer 141 Win Type - Total 0 Types 0/0/0/0/0/0/0/0/0/0 Lore% 65 Gallery% 65 Achievement% 49 Wizard Run 0 Options --------- Layout 1 ASCII 0 Keyboard 0 Movement Mouse Keybinds 0 Fullscreen 1 Font 24/Smallcaps Map View 50x35 Zoom Use 0% Tactical HUD 1 Map Filters NONE Filters NONE Steam 1 RUN: 59925bf9-5025-4ebb-aabb-9c8d427c2aee